bitfinex/quotes_SOLUSD_20250612
["timestamp","ask_amount","ask_price","bid_price","bid_amount"]
[1749750110360,8.58634032,160.14,160.13,25.78]
[1749750110534,8.58632351,160.14,160.13,25.78]
[1749750110737,8.58631333,160.14,160.13,25.78]
[1749750111064,6.24453603,160.14,160.13,54.56586092]
[1749750111434,8.58619728,160.14,160.13,54.56586092]
[1749750111632,6.24258692,160.19,160.18,10.0]
[1749750111835,8.58343265,160.19,160.18,54.56586092]
[1749750112036,8.58342812,160.19,160.18,54.56586092]
[1749750112242,2.3408412,160.19,160.18,54.56586092]
[1749750112738,2.34063962,160.19,160.18,54.56586092]
[1749750112939,2.3406396,160.19,160.18,54.56586092]
[1749750113263,2.34063193,160.19,160.18,54.56586092]
[1749750113474,6.39227312,160.2,160.19,10.0]
[1749750113651,6.39227312,160.2,160.19,28.78586092]
[1749750115560,6.53443469,160.2,160.19,10.0]
[1749750121852,6.53443469,160.2,160.18,35.78]
[1749750122056,6.53443469,160.2,160.19,10.0]
[1749750123769,6.39227312,160.2,160.19,28.78586092]
[1749750125152,6.39227312,160.2,160.19,117.28586092]
[1749750125347,0.15,160.2,160.19,117.28586092]
[1749750125849,6.39219725,160.2,160.19,117.28586092]
[1749750126973,6.39219725,160.2,160.19,98.5]
[1749750127473,6.39219725,160.2,160.19,143.04586092]
[1749750127778,6.39219725,160.2,160.19,124.26]
[1749750127956,6.39219725,160.2,160.19,143.04586092]
[1749750129359,6.39219725,160.2,160.19,124.26]
[1749750129574,6.39219725,160.2,160.19,143.04586092]
[1749750130285,6.39219725,160.2,160.19,54.54586092]
[1749750137377,11.06076295,160.2,160.19,54.54586092]
[1749750137580,11.06073837,160.2,160.19,35.76]
[1749750138088,6.39219725,160.2,160.19,54.54586092]
[1749750138290,11.06093017,160.2,160.19,54.54586092]
[1749750138791,11.06113853,160.2,160.19,10.0]
[1749750138980,11.06121034,160.2,160.19,35.74]
[1749750139179,11.20337191,160.2,160.19,35.74]
[1749750139676,6.53435882,160.2,160.19,35.74]
[1749750140079,11.20334056,160.2,160.19,35.74]
[1749750140276,11.2033338,160.2,160.19,35.74]
[1749750140679,11.2033341,160.2,160.19,35.74]
[1749750140865,11.20333409,160.2,160.19,35.74]
[1749750141070,6.53435882,160.2,160.19,35.74]
[1749750141394,11.20351264,160.2,160.19,35.74]
[1749750141974,6.53435882,160.2,160.19,35.74]
[1749750142370,11.20351264,160.2,160.19,10.0]
[1749750142590,11.20351264,160.2,160.19,35.74]
[1749750142791,11.20353723,160.2,160.19,35.74]
[1749750143092,11.20353723,160.2,160.19,10.0]
[1749750143297,0.14216157,160.19,160.17,10.0]
[1749750143491,0.14216157,160.17,160.16,10.0]
[1749750143789,0.14216157,160.17,160.16,35.74]
[1749750143969,11.0551863,160.17,160.16,35.74]
[1749750144169,6.38552799,160.17,160.16,35.74]
[1749750144372,11.0551825,160.17,160.16,35.74]
[1749750144881,6.38552799,160.17,160.16,35.74]
[1749750145075,11.05520709,160.17,160.16,35.74]
[1749750145276,6.38552799,160.17,160.16,35.74]
[1749750145486,11.05521864,160.17,160.16,35.74]
[1749750146004,45.44949561,160.17,160.14,10.0]
[1749750146179,18.92802249,160.15,160.14,10.0]
[1749750146380,23.59843465,160.15,160.14,35.74]
[1749750146590,23.59843677,160.15,160.14,10.0]
[1749750146777,23.59843677,160.15,160.14,25.74]
[1749750146974,30.81280493,160.15,160.13,10.0]
[1749750147200,44.78586092,160.15,160.14,25.74]
[1749750147516,30.81281253,160.15,160.14,25.74]
[1749750147675,30.81271787,160.15,160.14,25.74]
[1749750147995,6.24384121,160.16,160.14,54.52586092]
[1749750148180,6.24384121,160.16,160.15,28.78586092]
[1749750150204,0.14216157,160.19,160.15,28.78586092]
[1749750150205,6.38513822,160.18,160.17,10.0]
[1749750150402,6.38513822,160.18,160.17,54.52586092]
[1749750150804,6.24297665,160.18,160.17,54.52586092]
[1749750151598,6.38513822,160.18,160.17,35.74]
[1749750151975,0.14216157,160.17,160.16,10.0]
[1749750152169,6.38552799,160.17,160.16,35.74]
[1749750152998,6.38552799,160.17,160.16,25.74]
[1749750153201,6.38552799,160.17,160.16,35.74]
[1749750154399,6.38552799,160.17,160.16,25.74]
[1749750154602,59.42945382,160.17,160.16,25.74]
[1749750155180,40.6435929,160.17,160.16,25.74]
[1749750155386,61.76465948,160.17,160.16,25.74]
[1749750155698,61.76467178,160.17,160.16,25.74]
[1749750155900,61.76465957,160.17,160.16,25.74]
[1749750156102,59.42945382,160.17,160.16,25.74]
[1749750156309,61.76460577,160.17,160.14,10.0]
[1749750156478,6.38591781,160.16,160.15,35.74]
[1749750156806,8.72110792,160.16,160.15,35.74]
[1749750157011,8.71370734,160.16,160.15,35.74]
[1749750157194,8.71370734,160.16,160.15,25.74]
[1749750157395,6.38591781,160.16,160.15,25.74]
[1749750157917,25.17177873,160.16,160.12,10.0]
[1749750158206,0.14216157,160.12,160.11,10.04]
[1749750158517,0.14216157,160.12,160.11,35.78]
[1749750159295,0.14216157,160.12,160.11,25.78]
[1749750159515,18.92802249,160.12,160.11,0.04]
[1749750159696,63.57767135,160.12,160.11,0.04]
[1749750160010,69.82298736,160.12,160.11,25.78]
[1749750160796,69.82298736,160.12,160.11,0.04]
[1749750161002,69.82298736,160.12,160.11,25.78]
[1749750162499,51.03712644,160.12,160.11,25.78]
[1749750162704,51.1733385,160.12,160.11,25.78]
[1749750162901,32.38747758,160.12,160.11,25.78]
[1749750169005,6.38747758,160.12,160.11,35.78]
[1749750171128,6.24531601,160.12,160.11,35.78]
[1749750173826,0.14216157,160.15,160.13,10.0]
[1749750173827,6.3866976,160.14,160.13,10.0]
[1749750174146,6.3866976,160.14,160.13,35.74]
[1749750176657,6.24414611,160.15,160.13,35.74]
[1749750178252,6.38630768,160.15,160.14,10.0]
[1749750180520,6.24414611,160.15,160.14,10.0]
[1749750182149,21.85182865,160.17,160.14,10.04]
[1749750182348,21.85182865,160.17,160.15,25.74]
[1749750182528,6.38552799,160.17,160.16,10.0]
[1749750182732,6.24336642,160.17,160.16,10.0]
[1749750184363,6.38513822,160.18,160.17,10.0]
[1749750184525,6.38513822,160.18,160.17,35.74]
[1749750186628,10.91170731,160.19,160.18,10.0]
[1749750188537,4.66898049,160.19,160.18,10.0]
[1749750190038,10.51227048,160.19,160.18,10.0]
[1749750190438,4.66898049,160.19,160.18,10.0]
[1749750190950,10.91156741,160.19,160.18,10.0]
[1749750191341,6.24258692,160.19,160.18,10.0]
[1749750192263,6.24258692,160.19,160.18,98.5]
[1749750193264,6.39226217,160.2,160.18,98.5]
[1749750193447,6.39226217,160.2,160.19,25.72]
[1749750194041,6.39226217,160.2,160.19,35.72]
[1749750200270,6.39226217,160.2,160.19,10.0]
[1749750200451,6.39226217,160.2,160.19,35.72]
[1749750207359,6.39226217,160.2,160.19,10.0]
[1749750207558,6.53442374,160.2,160.18,10.0]
[1749750207759,6.53442374,160.2,160.19,35.7]
[1749750208550,0.14216157,160.19,160.17,10.0]
[1749750208750,0.14216157,160.19,160.18,10.0]
[1749750209048,0.14216157,160.19,160.18,35.7]
[1749750209448,6.38474849,160.19,160.18,35.7]
[1749750211255,6.24258692,160.19,160.18,35.7]
[1749750213574,6.39232709,160.2,160.18,35.7]
[1749750213962,6.39232709,160.2,160.19,10.0]
[1749750214565,0.15,160.2,160.19,10.0]
[1749750217273,6.39219725,160.2,160.19,10.0]
[1749750218882,0.15,160.2,160.19,10.0]
[1749750224786,0.15,160.2,160.19,98.5]
[1749750227271,2.44735747,160.23,160.22,26.0]
[1749750227464,2.44735747,160.23,160.22,150.05]
[1749750227670,2.44735747,160.23,160.22,61.7]
[1749750228390,2.44735747,160.23,160.22,80.43534897]
[1749750228974,6.23816452,160.31,160.3,10.0]
[1749750229291,6.23816452,160.31,160.3,35.68]
[1749750229969,6.38032609,160.31,160.3,35.68]
[1749750232686,6.38032609,160.31,160.3,25.68]
[1749750233067,0.14216157,160.3,160.29,10.0]
[1749750233287,0.14216157,160.3,160.29,35.68]
[1749750233586,6.38046475,160.3,160.29,35.68]
[1749750234288,6.38046475,160.3,160.28,10.0]
[1749750234495,6.38046475,160.3,160.29,35.68]
[1749750237191,6.38046475,160.3,160.29,25.68]
[1749750237495,6.38046475,160.3,160.29,35.68]
[1749750237992,6.38046475,160.3,160.29,25.68]
[1749750238194,6.38046475,160.3,160.29,35.68]
[1749750240094,6.38046475,160.3,160.28,10.0]
[1749750240401,6.38046475,160.3,160.29,25.68]
[1749750241519,0.14216157,160.28,160.25,10.07247132]
[1749750241806,0.14216157,160.26,160.25,10.07247132]
[1749750242005,0.14216157,160.26,160.25,25.75247132]
[1749750242202,6.38202179,160.26,160.25,25.75247132]
[1749750242712,25.03167065,160.26,160.25,25.79247132]
[1749750243683,25.03167065,160.26,160.25,0.11247132]
[1749750244405,25.03167065,160.26,160.25,25.79247132]
[1749750245377,6.23986022,160.26,160.25,25.79247132]
[1749750245578,6.38202179,160.26,160.25,25.79247132]
[1749750247594,8.70510438,160.26,160.25,25.79247132]
[1749750247803,6.38202179,160.26,160.25,25.79247132]
[1749750248003,8.70510438,160.26,160.25,25.79247132]
[1749750248202,8.7051313,160.26,160.25,25.79247132]
[1749750248508,8.70514353,160.26,160.25,25.79247132]
[1749750248682,8.70514016,160.26,160.25,25.79247132]
[1749750249085,8.70514008,160.26,160.25,25.79247132]
[1749750249493,6.38202179,160.26,160.25,25.79247132]
[1749750249805,8.70511907,160.26,160.25,25.79247132]
[1749750250000,27.35478016,160.26,160.25,25.79247132]
[1749750250797,27.35476793,160.26,160.25,25.79247132]
[1749750251192,25.03167065,160.26,160.25,25.79247132]
[1749750251683,27.35499289,160.26,160.25,25.79247132]
[1749750252200,25.03167065,160.26,160.25,25.79247132]
[1749750252390,27.35499051,160.26,160.25,25.79247132]
[1749750252592,27.35499051,160.26,160.25,0.11247132]
[1749750252816,27.35503858,160.26,160.25,25.79247132]
[1749750253098,27.35503821,160.26,160.25,25.79247132]
[1749750253296,27.35503839,160.26,160.25,25.79247132]
[1749750253498,27.3550384,160.26,160.25,25.79247132]
[1749750253681,27.35499051,160.26,160.25,25.79247132]
[1749750253887,25.03167065,160.26,160.25,25.79247132]
[1749750254095,27.35491713,160.26,160.25,25.79247132]
[1749750254483,25.03167065,160.26,160.25,25.79247132]
[1749750254684,27.35491713,160.26,160.25,25.79247132]
[1749750254915,25.03167065,160.26,160.25,25.79247132]
[1749750255109,25.03167065,160.26,160.25,0.11247132]
[1749750255414,27.37124992,160.26,160.25,25.79247132]
[1749750255617,27.37127365,160.26,160.25,25.79247132]
[1749750255912,27.37122439,160.26,160.25,25.79247132]
[1749750256322,27.37109752,160.26,160.25,25.79247132]
[1749750256612,27.37109724,160.26,160.25,25.79247132]
[1749750256984,27.37116999,160.26,160.25,25.79247132]
[1749750257204,25.03167065,160.26,160.25,25.79247132]
[1749750257417,27.37109047,160.26,160.25,25.79247132]
[1749750257590,27.37108708,160.26,160.25,25.79247132]
[1749750257787,27.37107476,160.26,160.25,25.79247132]
[1749750258199,25.03167065,160.26,160.25,25.79247132]
[1749750258404,27.37107476,160.26,160.25,25.79247132]
[1749750258620,25.03167065,160.26,160.25,25.79247132]
[1749750258825,27.37107476,160.26,160.25,25.79247132]
[1749750259799,25.03167065,160.26,160.25,25.79247132]
[1749750260006,27.37107476,160.26,160.25,25.79247132]
[1749750260394,25.03167065,160.26,160.25,25.79247132]
[1749750260593,27.371197,160.26,160.25,25.79247132]
[1749750260794,25.03167065,160.26,160.25,25.79247132]
[1749750261211,27.37120038,160.26,160.25,25.79247132]
[1749750261425,25.03167065,160.26,160.25,25.79247132]
[1749750261722,27.37120038,160.26,160.25,25.79247132]
[1749750261921,25.03167065,160.26,160.25,25.79247132]
[1749750262100,27.37120038,160.26,160.25,25.79247132]
[1749750262499,27.37109016,160.26,160.25,25.79247132]
[1749750262719,27.37106306,160.26,160.25,25.79247132]
[1749750262894,8.72137015,160.26,160.25,25.79247132]
[1749750263099,6.38202179,160.26,160.25,25.79247132]
[1749750263419,8.71942432,160.26,160.25,25.79247132]
[1749750263613,6.38202179,160.26,160.25,25.79247132]
[1749750263995,8.71942094,160.26,160.25,25.79247132]
[1749750264603,6.38202179,160.26,160.25,25.79247132]
[1749750264812,8.71942094,160.26,160.25,25.79247132]
[1749750265129,8.71942094,160.26,160.25,35.79247132]
[1749750265422,8.57707514,160.26,160.25,35.79247132]
[1749750265629,2.33717101,160.26,160.25,35.79247132]
[1749750265823,6.23959745,160.27,160.25,35.79247132]
[1749750266034,2.33705187,160.26,160.25,35.79247132]
[1749750266333,10.89057116,160.3,160.28,10.0]
[1749750266334,6.23864431,160.3,160.28,10.0]
[1749750266624,6.23864431,160.3,160.29,35.68]
[1749750266799,2.33657634,160.3,160.29,35.68]
[1749750266999,2.33652703,160.3,160.29,35.68]
[1749750267231,6.23752495,160.32,160.29,35.68]
[1749750267407,2.3365418,160.31,160.29,35.68]
[1749750267598,2.3365381,160.3,160.29,35.68]
[1749750268199,0.14216157,160.31,160.3,10.0]
[1749750268711,2.47866676,160.31,160.3,10.0]
[1749750269003,8.71659309,160.31,160.3,10.0]
[1749750269215,8.71660538,160.31,160.3,10.0]
[1749750269409,6.38007561,160.31,160.3,10.0]
[1749750269616,8.57442049,160.31,160.3,10.0]
[1749750269800,8.57433753,160.31,160.3,10.0]
[1749750270001,6.23791404,160.31,160.3,10.0]
[1749750270216,8.57433547,160.31,160.3,10.0]
[1749750270526,2.33642143,160.31,160.3,10.0]
[1749750270731,6.23761766,160.32,160.3,10.0]
[1749750270901,6.23761766,160.32,160.31,25.66]
[1749750271225,6.23761766,160.32,160.31,35.66]
[1749750271822,8.57375788,160.32,160.31,35.66]
[1749750272223,6.37977923,160.32,160.31,35.66]
[1749750272420,8.71590716,160.32,160.31,35.66]
[1749750272618,8.71590378,160.32,160.31,35.66]
[1749750273824,8.71581762,160.32,160.31,35.66]
[1749750274026,8.715821,160.32,160.31,35.66]
[1749750274522,8.71580871,160.32,160.31,35.66]
[1749750275225,8.71591594,160.32,160.31,35.66]
[1749750275421,24.30972831,160.32,160.29,10.0]
[1749750275621,2.47843693,160.31,160.3,35.66]
[1749750276425,2.47846614,160.31,160.3,25.66]
[1749750276603,0.14216157,160.31,160.3,25.66]
[1749750276807,2.47857953,160.31,160.3,25.66]
[1749750277017,0.14216157,160.31,160.3,25.66]
[1749750277326,2.47857953,160.31,160.3,25.66]
[1749750277509,6.38007561,160.31,160.3,25.66]
[1749750277829,8.7164788,160.31,160.3,25.66]
[1749750278013,8.71639021,160.31,160.3,25.66]
[1749750278714,6.38007561,160.31,160.29,10.0]
[1749750278927,6.38007561,160.31,160.3,25.66]
[1749750279432,6.38007561,160.31,160.29,10.0]
[1749750279433,8.71637094,160.31,160.29,10.0]
[1749750279606,6.38007561,160.31,160.3,25.66]
[1749750280228,8.71639792,160.31,160.3,25.66]
[1749750280528,8.71637086,160.31,160.3,25.66]
[1749750280716,8.71638315,160.31,160.3,25.66]
[1749750281315,6.38007561,160.31,160.3,35.66]
[1749750281624,8.70667625,160.31,160.3,35.66]
[1749750282131,6.38007561,160.31,160.3,35.66]
[1749750282714,8.70666401,160.31,160.3,35.66]
[1749750283609,8.70667625,160.31,160.3,35.66]
[1749750284024,6.38007561,160.31,160.3,35.66]
[1749750284233,8.70667625,160.31,160.3,35.66]
[1749750284619,6.38007561,160.31,160.3,35.66]
[1749750284948,8.70666401,160.31,160.3,35.66]
[1749750285315,6.38007561,160.31,160.3,35.66]
[1749750285634,8.70666401,160.31,160.3,35.66]
[1749750285941,8.70667625,160.31,160.3,35.66]
[1749750286112,8.70667625,160.31,160.25,90.04707132]
[1749750286113,42.95123998,160.31,160.27,10.0]
[1749750286315,0.14216157,160.29,160.25,10.11247132]
[1749750286530,0.14216157,160.29,160.28,10.0]
[1749750286845,21.11870668,160.29,160.28,25.66]
[1749750287023,21.11871088,160.29,160.28,25.66]
[1749750287332,44.79181043,160.26,160.25,0.04]
[1749750287525,53.35924149,160.26,160.25,0.04]
[1749750287724,55.68228258,160.26,160.25,0.04]
[1749750288040,39.36012519,160.26,160.25,0.04]
[1749750288229,39.36010729,160.26,160.25,0.04]
[1749750288544,39.36004143,160.26,160.25,0.04]
[1749750288844,39.35999419,160.26,160.25,10.04]
[1749750289049,39.35999658,160.26,160.25,10.04]
[1749750289425,39.35999659,160.26,160.25,10.04]
[1749750289740,32.38202179,160.26,160.25,10.04]
[1749750290043,34.70935999,160.26,160.25,10.04]
[1749750290223,32.38202179,160.26,160.25,10.04]
[1749750291332,6.23986022,160.26,160.25,10.04]
[1749750291833,6.23947089,160.27,160.25,10.04]
[1749750292026,6.38163246,160.27,160.26,25.66]
[1749750292229,6.38163246,160.27,160.26,35.66]
[1749750295384,27.35461387,160.27,160.26,25.66]
[1749750295647,32.0051521,160.27,160.26,25.66]
[1749750296353,32.00515547,160.27,160.26,25.66]
[1749750296642,6.38202179,160.26,160.25,10.04]
[1749750296827,6.38202179,160.26,160.25,35.7]
[1749750299463,6.23986022,160.26,160.25,35.7]
[1749750300460,6.2396248,160.27,160.26,10.0]
[1749750301439,6.38085394,160.29,160.28,10.0]
[1749750301740,6.38085394,160.29,160.28,35.66]
[1749750301945,6.23869237,160.29,160.28,35.66]
[1749750303055,6.23791404,160.31,160.3,10.0]
[1749750303257,6.23791404,160.31,160.3,35.66]
[1749750303444,6.23752495,160.32,160.3,35.66]
[1749750303965,6.23752495,160.32,160.31,10.0]
[1749750304361,6.23752495,160.32,160.31,10.04]
[1749750305443,6.37929747,160.33,160.31,10.04]
[1749750305646,6.37929747,160.33,160.32,25.66]
[1749750305861,6.37929747,160.33,160.32,35.66]
[1749750306643,6.2371359,160.33,160.32,35.66]
[1749750307070,6.37929747,160.33,160.32,35.66]
[1749750307959,6.2371359,160.33,160.32,35.66]
[1749750309768,6.23674691,160.34,160.33,10.0]
[1749750311572,6.23596906,160.36,160.35,10.0]
[1749750311878,21.82408742,160.38,160.37,10.0]
[1749750312174,24.29448571,160.38,160.37,35.64]
[1749750312778,24.29447348,160.38,160.37,35.64]
[1749750313071,6.23519142,160.38,160.37,35.64]
[1749750313278,8.56337668,160.38,160.37,35.64]
[1749750313449,6.23519142,160.38,160.37,35.64]
[1749750313864,6.37696423,160.39,160.38,10.0]
[1749750314071,8.70504293,160.39,160.38,10.0]
[1749750314280,6.37696423,160.39,160.38,10.0]
[1749750315568,6.23480266,160.39,160.38,10.0]
[1749750315751,6.37696423,160.39,160.38,10.0]
[1749750316074,6.37696423,160.39,160.38,35.64]
[1749750323956,6.37696423,160.39,160.38,10.0]
[1749750324278,8.70498942,160.39,160.38,35.64]
[1749750324494,18.79181043,160.38,160.35,10.0]
[1749750324788,26.14216157,160.35,160.33,10.0]
[1749750324955,0.14216157,160.34,160.32,10.0]
[1749750325279,2.47083122,160.34,160.33,10.0]
[1749750325582,2.47094637,160.34,160.33,35.64]
[1749750325883,0.14216157,160.34,160.33,35.64]
[1749750326081,0.14216157,160.32,160.31,0.04]
[1749750326376,0.14216157,160.32,160.31,35.68]
[1749750326377,2.47192028,160.32,160.31,35.68]
[1749750326556,0.14216157,160.32,160.31,35.68]
[1749750327778,6.37968652,160.32,160.31,35.68]
[1749750329585,6.23752495,160.32,160.31,35.68]
[1749750330881,0.14216157,160.34,160.32,10.0]
[1749750331082,15.5898051,160.37,160.36,10.0]
[1749750331289,34.23945396,160.37,160.36,25.64]
[1749750331489,36.71095068,160.37,160.36,35.64]
[1749750331673,36.71096881,160.37,160.36,25.64]
[1749750331877,36.71097112,160.37,160.36,25.64]
[1749750332198,36.71100234,160.37,160.36,25.64]
[1749750332495,36.71098494,160.37,160.36,25.64]
[1749750332701,36.71098493,160.37,160.36,25.64]
[1749750332978,40.61719575,160.37,160.36,25.64]
[1749750333189,42.94658858,160.37,160.36,25.64]
[1749750333367,40.61719575,160.37,160.36,25.64]
[1749750333573,42.94659501,160.37,160.36,25.64]
[1749750333989,42.94659497,160.37,160.36,25.64]
[1749750334289,42.94660006,160.37,160.36,25.64]
[1749750334499,42.94659121,160.37,160.36,25.64]
[1749750334792,42.9465675,160.37,160.36,25.64]
[1749750335295,42.94657973,160.37,160.36,25.64]
[1749750335595,42.94660006,160.37,160.36,25.64]
[1749750335775,18.79181043,160.36,160.33,10.0]
[1749750336085,2.47169296,160.35,160.34,25.64]
[1749750336293,28.471676,160.35,160.34,35.64]
[1749750336463,28.47166929,160.35,160.34,35.64]
[1749750336665,28.47166938,160.35,160.34,35.64]
[1749750336867,28.47165619,160.35,160.34,35.64]
[1749750337087,32.37851953,160.35,160.34,35.64]
[1749750337390,34.70802978,160.35,160.34,10.0]
[1749750337592,34.70806623,160.35,160.34,35.64]
[1749750337779,32.37851953,160.35,160.34,35.64]
[1749750338096,34.70796329,160.35,160.34,35.64]
[1749750338286,32.37851953,160.35,160.34,35.64]
[1749750338486,34.70786526,160.35,160.34,35.64]
[1749750338674,34.70779469,160.35,160.34,35.64]
[1749750338993,34.70785348,160.35,160.34,35.64]
[1749750339379,34.70789903,160.35,160.34,10.0]
[1749750339582,32.37851953,160.35,160.34,35.64]
[1749750339894,32.37851953,160.35,160.31,0.04]
[1749750339895,34.70800563,160.35,160.33,10.0]
[1749750340101,32.37851953,160.35,160.34,35.64]
[1749750340272,34.708014,160.35,160.34,35.64]
[1749750340474,34.7079863,160.35,160.34,35.64]
[1749750340681,34.70791635,160.35,160.34,35.64]
[1749750340885,32.37851953,160.35,160.34,35.64]
[1749750341086,34.70785861,160.35,160.34,35.64]
[1749750341396,32.37851953,160.35,160.34,35.64]
[1749750341575,34.70791288,160.35,160.34,35.64]
[1749750341982,34.70792512,160.35,160.34,35.64]
[1749750342603,34.70801415,160.35,160.34,35.64]
[1749750342771,32.37851953,160.35,160.34,35.64]
[1749750342972,34.70801415,160.35,160.34,35.64]
[1749750343694,34.70804125,160.35,160.34,35.64]
[1749750344096,34.70805349,160.35,160.34,35.64]
[1749750344397,32.37851953,160.35,160.34,35.64]
[1749750344600,39.35968384,160.35,160.34,35.64]
[1749750345099,34.70801415,160.35,160.34,35.64]
[1749750345299,32.37851953,160.35,160.34,35.64]
[1749750345495,34.70801415,160.35,160.34,35.64]
[1749750345881,34.70791147,160.35,160.34,35.64]
[1749750346198,32.37851953,160.35,160.34,35.64]
[1749750346494,34.71141978,160.35,160.34,35.64]
[1749750346682,39.36528783,160.35,160.34,35.64]
[1749750346886,39.36539523,160.35,160.34,25.64]
[1749750347121,0.14216157,160.34,160.31,10.04]
[1749750347398,26.0,160.32,160.31,0.04]
[1749750347601,32.37968652,160.32,160.31,35.66]
[1749750347771,34.71302497,160.32,160.31,35.66]
[1749750347974,32.37968652,160.32,160.31,25.66]
[1749750348200,39.3691161,160.32,160.31,35.66]
[1749750348403,32.37968652,160.32,160.31,35.66]
[1749750348703,34.71302617,160.32,160.31,35.66]
[1749750349296,8.57082444,160.32,160.31,35.66]
[1749750349496,6.23752495,160.32,160.31,35.66]
[1749750350076,8.57037419,160.32,160.31,35.66]
[1749750350277,6.23752495,160.32,160.31,35.66]
[1749750351307,2.33288053,160.32,160.31,35.68]
[1749750351805,2.33255954,160.32,160.31,35.68]
[1749750352197,6.2371359,160.33,160.32,10.0]
[1749750352375,8.56958189,160.33,160.32,10.0]
[1749750352806,6.2371359,160.33,160.32,10.0]
[1749750354210,4.65651784,160.37,160.36,10.0]
[1749750354381,11.03425963,160.37,160.36,35.62]
[1749750354588,13.36543565,160.37,160.36,35.62]
[1749750354790,13.36543464,160.37,160.36,35.62]
[1749750354984,11.03425963,160.37,160.36,35.62]
[1749750355203,13.36545181,160.37,160.36,35.62]
[1749750355403,11.03425963,160.37,160.36,35.62]
[1749750355610,13.36545181,160.37,160.36,35.62]
[1749750355789,11.03425963,160.37,160.36,35.62]
[1749750356193,13.36391483,160.37,160.36,35.62]
[1749750356490,11.03425963,160.37,160.36,35.62]
[1749750356686,13.36342955,160.37,160.36,35.62]
[1749750356885,13.36341732,160.37,160.36,35.62]
[1749750357113,13.36339361,160.37,160.36,35.62]
[1749750357418,11.03425963,160.37,160.36,35.62]
[1749750357704,10.89209806,160.37,160.36,35.62]
[1749750357913,8.56453391,160.37,160.36,35.62]
[1749750358111,6.23558022,160.37,160.36,35.62]
[1749750358297,4.65651784,160.39,160.37,10.0]
[1749750358298,6.2353579,160.38,160.37,10.0]
[1749750358494,6.2353579,160.38,160.37,35.62]
[1749750358904,4.65651784,160.4,160.37,35.62]
[1749750359118,6.23496563,160.39,160.38,10.0]
[1749750359316,6.23402531,160.41,160.38,35.62]
[1749750359610,6.23402531,160.41,160.4,10.0]
[1749750359813,6.23402531,160.41,160.4,35.62]
[1749750360220,6.23247117,160.45,160.43,10.0]
[1749750360389,6.23247117,160.45,160.44,35.62]
[1749750360390,10.88666283,160.45,160.44,35.62]
[1749750360596,13.21486681,160.45,160.44,35.62]
[1749750360918,11.0288244,160.45,160.44,35.62]
[1749750361211,10.88666283,160.45,160.44,35.62]
[1749750361510,13.21486653,160.45,160.44,35.62]
[1749750361923,10.88666283,160.45,160.44,35.62]
[1749750362116,13.21478527,160.45,160.44,35.62]
[1749750362319,13.35694684,160.45,160.44,35.62]
[1749750362508,11.0288244,160.45,160.44,35.62]
[1749750362893,13.35684893,160.45,160.44,35.62]
[1749750363122,11.0288244,160.45,160.44,35.62]
[1749750363287,13.3568527,160.45,160.44,35.62]
[1749750363501,13.35679522,160.45,160.44,35.62]
[1749750364216,13.35679073,160.45,160.44,35.62]
[1749750364419,11.02170087,160.45,160.44,35.62]
[1749750364616,13.34967715,160.45,160.44,35.62]
[1749750364923,11.02170087,160.45,160.44,35.66]
[1749750365124,8.70250384,160.45,160.44,35.66]
[1749750365323,8.70250394,160.45,160.44,35.66]
[1749750365506,8.70250398,160.45,160.44,35.66]
[1749750365714,8.70257398,160.45,160.44,35.66]
[1749750366017,8.70256841,160.45,160.44,35.66]
[1749750366420,6.37463274,160.45,160.44,35.66]
[1749750366599,8.70263947,160.45,160.44,35.66]
[1749750366801,8.70263974,160.45,160.44,35.66]
[1749750367200,6.37463274,160.45,160.44,35.66]
[1749750367703,8.70262697,160.45,160.44,35.66]
[1749750367915,6.37463274,160.45,160.44,35.66]